bitfinex-derivatives/quotes_SOLF0:USTF0_20250905
["timestamp","ask_amount","ask_price","bid_price","bid_amount"]
[1757057507543,0.03318332,207.08,207.02,47.66]
[1757057508242,0.03318332,207.08,207.03,0.59]
[1757057508439,0.03318332,207.08,207.02,48.25]
[1757057508742,0.03318332,207.08,207.02,84.39]
[1757057509139,7.7,207.07,207.01,120.58]
[1757057510545,7.7,207.07,206.99,121.72]
[1757057511241,7.7,207.07,206.95,0.59]
[1757057511450,7.7,207.07,206.96,121.74]
[1757057511746,0.03333493,207.04,206.97,0.59]
[1757057514643,7.7,207.03,206.97,0.59]
[1757057515746,7.7,207.03,206.96,121.74]
[1757057517752,7.7,207.03,206.94,0.59]
[1757057526557,7.7,207.03,206.93,310.94]
[1757057526758,0.03333493,207.04,206.94,121.74]
[1757057526947,7.7,207.03,206.94,121.74]
[1757057527656,0.03333493,207.04,206.94,121.74]
[1757057527958,7.7,207.03,206.94,121.74]
[1757057528551,0.03333493,207.04,206.94,121.74]
[1757057528753,7.7,207.03,206.94,121.74]
[1757057529150,0.03333493,207.04,206.94,121.74]
[1757057529449,7.7,207.03,206.94,121.74]
[1757057529759,7.7,207.03,206.95,0.59]
[1757057530156,0.03333493,207.04,206.93,310.94]
[1757057530354,7.7,207.03,206.93,432.68]
[1757057530758,7.7,207.03,206.93,433.27]
[1757057531865,7.7,207.03,206.94,0.59]
[1757057536754,7.7,207.03,206.88,3.94021405]
[1757057536962,7.7,207.0,206.9,0.59]
[1757057537158,7.7,207.0,206.91,3.48]
[1757057537365,0.03183122,206.97,206.91,3.48]
[1757057542069,0.03183122,206.97,206.92,0.58]
[1757057542470,0.03183122,206.97,206.91,3.48]
[1757057542865,0.03183122,206.97,206.92,0.58]
[1757057543071,0.03183122,206.97,206.91,3.48]
[1757057543366,0.03183122,206.97,206.91,0.58]
[1757057545467,0.03183122,206.97,206.92,0.58]
[1757057545671,0.03183122,206.97,206.92,2.63262856]
[1757057545875,0.03183122,206.97,206.93,0.58]
[1757057546380,0.03183122,206.97,206.92,2.05262856]
[1757057546878,0.03183122,206.97,206.93,0.58]
[1757057547378,0.03183122,206.97,206.92,2.05262856]
[1757057547776,0.03183122,206.97,206.93,0.58]
[1757057547976,0.03183122,206.97,206.92,2.05262856]
[1757057548375,0.03183122,206.97,206.94,0.58]
[1757057548570,0.03183122,206.97,206.93,122.82]
[1757057548769,0.03183122,206.97,206.94,0.58]
[1757057549077,0.03183122,206.97,206.93,122.72]
[1757057549972,7.73,206.96,206.92,3.94021405]
[1757057550172,0.03183122,206.97,206.9,3.94021405]
[1757057550378,7.73,206.96,206.9,126.06]
[1757057550579,7.73,206.96,206.89,0.58]
[1757057550982,7.73,206.96,206.9,84.24]
[1757057551187,7.73,206.96,206.84,0.58]
[1757057551477,7.73,207.0,206.89,0.58]
[1757057551677,7.73,207.0,206.92,0.58]
[1757057551885,7.73,207.06,206.92,0.58]
[1757057552077,0.03365876,206.98,206.92,0.58]
[1757057552277,0.03365876,206.98,206.93,0.58]
[1757057552685,0.03365876,206.98,206.92,3.94021405]
[1757057553082,0.03365876,206.98,206.93,0.58]
[1757057553288,0.03365876,206.98,206.92,3.94021405]
[1757057553583,0.03365876,206.98,206.93,0.58]
[1757057553782,0.03365876,206.98,206.94,2.05262856]
[1757057553982,0.03365876,206.98,206.95,0.58]
[1757057555086,0.03365876,206.98,206.94,5.99284261]
[1757057555486,0.03365876,206.98,206.95,0.58]
[1757057555986,7.73,207.08,206.97,2.05262856]
[1757057556188,7.73,207.14,207.04,0.58]
[1757057556381,7.73,207.14,207.03,2.05262856]
[1757057556382,7.73,207.14,207.06,0.58]
[1757057556784,7.73,207.14,207.07,35.72]
[1757057557184,7.73,207.14,207.08,0.58]
[1757057557389,8.06406953,207.25,207.07,35.72]
[1757057557390,0.03275748,207.13,207.09,2.05262856]
[1757057557586,0.03275748,207.13,207.1,0.58]
[1757057557784,7.73,207.19,207.1,2.05262856]
[1757057557992,7.73,207.25,207.13,2.05262856]
[1757057558183,7.73,207.25,207.14,67.8]
[1757057559692,7.73,207.27,207.14,67.8]
[1757057559986,313.21262856,207.28,207.14,67.8]
[1757057560594,2.05262856,207.24,207.1,99.92]
[1757057560789,7.73,207.23,207.1,99.92]
[1757057560992,2.05262856,207.24,207.15,0.03238973]
[1757057561184,7.73,207.23,207.15,0.03238973]
[1757057561590,0.03387977,207.22,207.15,0.03238973]
[1757057565496,0.03387977,207.22,207.15,61.79238973]
[1757057565691,0.03387977,207.22,207.16,0.58]
[1757057567297,0.03387977,207.22,207.18,0.58]
[1757057567896,0.03387977,207.22,207.17,126.52]
[1757057568396,0.03387977,207.22,207.18,0.57]
[1757057568590,0.03387977,207.22,207.17,126.52]
[1757057568901,0.03387977,207.22,207.18,0.57]
[1757057569090,0.03387977,207.22,207.17,126.52]
[1757057569296,0.03387977,207.22,207.18,0.57]
[1757057569500,0.03387977,207.22,207.19,1.31170347]
[1757057569699,0.03387977,207.22,207.19,1.88170347]
[1757057569893,0.03387977,207.22,207.19,0.57]
[1757057570892,0.03387977,207.22,207.15,0.03238973]
[1757057571093,7.76,207.21,207.15,0.03238973]
[1757057572798,7.76,207.38,207.19,1.31170347]
[1757057573000,7.76,207.38,207.21,0.57]
[1757057573200,7.76,207.38,207.28,0.57]
[1757057573401,7.76,207.38,207.31,1.31170347]
[1757057574102,7.76,207.38,207.32,0.03237261]
[1757057574395,1.31170347,207.42,207.32,0.03237261]
[1757057574599,9.07170347,207.42,207.32,0.03237261]
[1757057574901,9.07170347,207.42,207.31,1.88170347]
[1757057575203,7.76,207.42,207.35,0.03596576]
[1757057577104,3.35886193,207.4,207.35,0.03596576]
[1757057577291,7.76,207.39,207.35,0.03596576]
[1757057577495,7.76,207.39,207.27,0.57]
[1757057577693,7.76,207.39,207.35,0.03292541]
[1757057579705,7.76,207.4,207.35,0.03292541]
[1757057580406,7.76,207.4,207.27,0.57]
[1757057580610,7.76,207.39,207.24,0.5]
[1757057580807,7.76,207.39,207.21,0.6]
[1757057581008,3.35886193,207.41,207.22,53.0]
[1757057581304,3.35886193,207.41,207.23,125.36]
[1757057581908,3.35886193,207.37,207.21,0.6]
[1757057582208,7.76,207.36,207.22,0.6]
[1757057584307,7.76,207.36,207.2,125.76]
[1757057584509,3.35886193,207.47,207.25,0.6]
[1757057584807,7.76,207.46,207.28,0.6]
[1757057585014,7.76,207.46,207.3,0.6]
[1757057588516,7.76,207.46,207.29,4.16]
[1757057588517,7.76,207.46,207.32,0.6]
[1757057588707,7.76,207.46,207.33,0.6]
[1757057589017,7.76,207.46,207.34,4.3399]
[1757057589315,7.76,207.46,207.35,0.6]
[1757057590413,7.76,207.48,207.31,0.6]
[1757057591208,7.76,207.48,207.33,3.35886193]
[1757057591413,7.76,207.48,207.34,0.6]
[1757057591613,7.76,207.48,207.36,0.6]
[1757057593317,7.76,207.48,207.37,0.6]
[1757057593514,7.76,207.48,207.39,0.6]
[1757057594220,7.76,207.55,207.39,0.6]
[1757057594714,7.76,207.55,207.4,26.7]
[1757057594922,7.76,207.57,207.39,0.6]
[1757057595110,3.35886193,207.58,207.39,0.6]
[1757057595314,3.35886193,207.58,207.4,1.32]
[1757057595315,7.76,207.57,207.4,1.32]
[1757057595619,7.76,207.57,207.39,0.6]
[1757057595816,7.76,207.57,207.4,2.22]
[1757057597019,7.76,207.57,207.41,0.6]
[1757057598523,7.76,207.57,207.42,2.48]
[1757057598821,7.76,207.57,207.41,0.6]
[1757057599025,7.76,207.57,207.41,4.5]
[1757057599326,7.76,207.57,207.41,5.94]
[1757057599521,7.76,207.57,207.41,0.6]
[1757057599917,7.76,207.57,207.41,4.78]
[1757057600126,7.76,207.57,207.41,0.6]
[1757057603713,7.76,207.57,207.39,5.6]
[1757057603915,7.76,207.57,207.42,0.57]
[1757057604518,7.76,207.57,207.44,0.57]
[1757057604922,3.35886193,207.66,207.45,123.86]
[1757057605129,55.48,207.7,207.45,123.86]
[1757057605130,3.35886193,207.68,207.47,0.57]
[1757057605329,0.03065422,207.58,207.53,0.60205597]
[1757057605527,7.44065422,207.58,207.53,0.60205597]
[1757057605727,7.41,207.58,207.53,0.57]
[1757057606021,7.44093249,207.58,207.53,0.60381756]
[1757057606528,7.44093249,207.58,207.54,0.57]
[1757057606726,0.03093249,207.58,207.53,0.03381756]
[1757057606922,7.41,207.57,207.53,0.03381756]
[1757057608428,0.03093249,207.58,207.53,0.03381756]
[1757057608928,7.41,207.57,207.53,0.03381756]
[1757057609129,0.03093249,207.58,207.53,0.03381756]
[1757057609329,7.41,207.57,207.53,0.03381756]
[1757057610126,0.03093249,207.58,207.53,0.03381756]
[1757057610329,7.41,207.57,207.53,0.03381756]
[1757057610529,0.03093249,207.58,207.53,0.03381756]
[1757057610722,7.41,207.57,207.53,0.03381756]
[1757057611927,0.03093249,207.58,207.53,0.03381756]
[1757057612432,7.41,207.57,207.53,0.03381756]
[1757057612630,0.03093249,207.58,207.53,0.03381756]
[1757057613529,7.41,207.57,207.53,0.03381756]
[1757057613731,0.03093249,207.58,207.53,0.03381756]
[1757057614036,7.41,207.57,207.53,0.03381756]
[1757057614232,0.03093249,207.58,207.42,311.1]
[1757057614529,7.41,207.57,207.43,0.6]
[1757057614727,7.41,207.57,207.44,0.6]
[1757057615428,0.03589222,207.53,207.46,1.30818278]
[1757057615827,0.03589222,207.53,207.43,4.3378]
[1757057616030,0.03589222,207.53,207.47,0.6]
[1757057616229,0.03589222,207.53,207.52,0.6]
[1757057620334,0.03589222,207.53,207.52,1.90818278]
[1757057621336,0.03589222,207.53,207.52,2.38818278]
[1757057623329,1.30818278,207.64,207.56,0.57]
[1757057623927,7.41,207.65,207.57,0.57]
[1757057624534,7.41,207.65,207.59,0.03710602]
[1757057624734,0.03062866,207.63,207.59,0.60710602]
[1757057625032,0.03062866,207.63,207.59,0.03710602]
[1757057625237,0.03062866,207.63,207.59,0.60710602]
[1757057625440,0.03062866,207.63,207.6,0.57]
[1757057626640,0.03062866,207.63,207.59,0.03710602]
[1757057626641,0.03062866,207.63,207.61,0.57]
[1757057627337,0.03062866,207.63,207.59,0.03710602]
[1757057627639,0.03062866,207.63,207.6,0.57]
[1757057628134,0.03062866,207.63,207.6,0.56]
[1757057628437,0.03062866,207.63,207.59,16.85710602]
[1757057628640,7.62062866,207.63,207.59,0.03710602]
[1757057628840,7.59,207.62,207.59,0.03710602]
[1757057629043,0.03062866,207.63,207.59,0.59710602]
[1757057629250,7.59,207.62,207.59,0.03710602]
[1757057629444,0.03062866,207.63,207.59,0.03710602]
[1757057629848,7.59,207.62,207.59,0.03710602]
[1757057630048,0.03062866,207.63,207.59,0.03710602]
[1757057630253,7.59,207.62,207.59,0.03710602]
[1757057631153,9.63262111,207.62,207.51,0.56]
[1757057632548,7.59,207.58,207.51,0.56]
[1757057633446,7.59,207.58,207.47,87.53755015]
[1757057633651,2.07381787,207.59,207.47,210.35755015]
[1757057633848,7.59,207.58,207.47,210.35755015]
[1757057634049,7.62252162,207.55,207.47,210.35755015]
[1757057634452,7.62252162,207.55,207.47,87.53755015]
[1757057637258,7.62252162,207.55,207.47,210.25755015]
[1757057640659,7.62252162,207.55,207.47,87.53755015]
[1757057640856,9.63262111,207.54,207.43,0.6]
[1757057641059,0.03252162,207.55,207.44,122.72]
[1757057641258,7.59,207.53,207.44,122.72]
[1757057641461,2.04262111,207.5,207.47,0.03628642]
[1757057641858,7.59,207.51,207.42,433.26]
[1757057642563,7.59,207.51,207.43,0.6]
[1757057643658,0.03653205,207.52,207.43,0.6]
[1757057648264,0.03653205,207.52,207.45,0.6]
[1757057648965,0.03653205,207.52,207.46,122.68]
[1757057651469,0.03653205,207.52,207.47,0.6]
[1757057651668,0.03653205,207.52,207.46,122.68]
[1757057651868,0.03653205,207.52,207.47,0.6]
[1757057652368,0.03653205,207.52,207.46,123.28]
[1757057652763,0.03653205,207.52,207.47,0.6]
[1757057655371,0.03653205,207.52,207.46,122.68]
[1757057655571,0.03653205,207.52,207.47,0.6]
[1757057655967,0.03653205,207.52,207.46,122.68]
[1757057656172,0.03653205,207.52,207.47,0.6]
[1757057657671,0.03653205,207.52,207.49,0.6]
[1757057658068,0.03653205,207.52,207.5,0.61]
[1757057658264,0.03653205,207.52,207.49,0.61]
[1757057658967,0.03653205,207.52,207.51,0.61]
[1757057659566,0.03653205,207.52,207.51,1.09]
[1757057659772,7.54,207.61,207.52,0.57]
[1757057660068,7.54,207.61,207.54,0.57]
[1757057660272,7.54,207.61,207.55,122.68]
[1757057660470,7.54,207.67,207.56,0.57]
[1757057661380,7.54,207.67,207.57,3.98]
[1757057661878,7.54,207.67,207.56,0.57]
[1757057662079,7.54,207.67,207.58,6.1]
[1757057662674,2.04262111,207.68,207.56,0.57]
[1757057662875,7.54,207.67,207.57,3.22]
[1757057663071,7.54,207.67,207.56,0.57]
[1757057663277,7.54,207.67,207.57,6.26]
[1757057665980,7.54,207.67,207.56,0.57]
[1757057666279,7.54,207.67,207.57,4.42]
[1757057666676,7.54,207.67,207.56,0.57]
[1757057667075,7.54,207.67,207.57,5.22]
[1757057667781,7.54,207.67,207.56,0.57]
[1757057668082,7.54,207.67,207.57,8.62]
[1757057668679,7.54,207.67,207.58,12.39]
[1757057668882,7.54,207.67,207.58,15.13]
[1757057669583,7.54,207.67,207.58,28.35]
[1757057672191,7.54,207.67,207.59,0.57]
[1757057672791,7.54,207.67,207.59,43.07]
[1757057673392,7.54,207.67,207.59,0.57]
[1757057674393,7.54,207.67,207.59,14.19]
[1757057676986,5.37288453,207.76,207.6,0.57]
[1757057677193,7.54,207.75,207.6,0.57]
[1757057677489,9.58262111,207.75,207.6,0.57]
[1757057677695,7.54,207.75,207.6,0.57]
[1757057677897,9.58262111,207.75,207.6,0.57]
[1757057678195,7.54,207.75,207.6,0.57]
[1757057678393,9.58262111,207.75,207.6,0.57]
[1757057679898,7.54,207.71,207.6,0.57]
[1757057684294,7.54,207.71,207.56,0.57]
[1757057684499,2.04262111,207.7,207.56,10.93]
[1757057684699,7.54,207.69,207.56,10.93]
[1757057684899,2.04262111,207.7,207.56,10.93]
[1757057685290,7.54,207.69,207.56,10.93]
[1757057686092,2.04262111,207.7,207.56,10.93]
[1757057686799,7.54,207.73,207.56,10.93]
[1757057687000,7.54,207.69,207.56,10.93]
[1757057687201,2.04262111,207.7,207.56,10.93]
[1757057687397,7.54,207.69,207.56,10.93]
[1757057687592,5.37288453,207.74,207.56,10.93]
[1757057687593,7.54,207.73,207.56,10.93]
[1757057687800,7.54,207.69,207.56,10.93]
[1757057687996,2.04262111,207.7,207.56,10.93]
[1757057688206,7.92,207.73,207.57,0.57]
[1757057688503,7.92,207.71,207.57,0.57]
[1757057690296,9.96262111,207.68,207.52,2.04262111]
[1757057690500,9.96262111,207.68,207.53,0.57]
[1757057691499,1.30752577,207.61,207.53,0.57]
[1757057691704,7.92,207.6,207.53,0.57]
[1757057692307,7.92,207.6,207.52,1.30752577]
[1757057692810,7.92,207.58,207.49,0.57]
[1757057693006,7.92,207.56,207.49,0.57]
[1757057695510,7.92,207.65,207.56,0.57]
[1757057696013,7.92,207.65,207.56,1.87752577]
[1757057697408,7.92,207.65,207.58,1.30752577]
[1757057699614,7.92,207.69,207.61,1.30752577]
[1757057700417,7.92,207.69,207.59,1.30752577]
[1757057700613,1.30752577,207.68,207.59,1.30752577]
[1757057701009,7.92,207.69,207.59,1.30752577]
[1757057701410,7.92,207.67,207.58,0.57]
[1757057701613,7.92,207.65,207.59,1.30752577]
[1757057702118,7.92,207.65,207.58,1.87752577]
[1757057703115,7.92,207.65,207.58,1.30752577]
[1757057704222,7.92,207.65,207.57,1.30752577]
[1757057705924,7.92,207.65,207.59,1.30752577]
[1757057708723,7.92,207.69,207.61,1.30752577]
[1757057708930,7.92,207.69,207.6,0.57]
[1757057709120,7.92,207.69,207.63,1.30752577]
[1757057709925,7.92,207.69,207.65,0.57]
[1757057710133,7.92,207.73,207.64,1.30752577]
[1757057717034,7.92,207.73,207.66,1.30752577]
[1757057718236,1.30752577,207.75,207.6,42.27]
[1757057718533,8.12,207.72,207.64,1.30752577]
[1757057722338,8.12,207.72,207.64,1.88752577]
[1757057723938,8.12,207.7,207.61,1.30752577]
[1757057724232,311.19825123,207.82,207.59,1.30752577]
[1757057724233,1.30752577,207.69,207.59,1.30752577]
[1757057724535,8.12,207.68,207.59,1.88752577]
[1757057724834,8.12,207.68,207.59,0.58]
[1757057725038,8.12,207.68,207.6,1.30752577]
[1757057725238,8.12,207.68,207.59,0.58]
[1757057725437,8.12,207.68,207.6,1.30752577]
[1757057725837,8.12,207.68,207.59,0.58]
[1757057726033,8.12,207.68,207.6,1.30752577]
[1757057726238,8.12,207.68,207.59,0.58]
[1757057726439,8.12,207.68,207.61,1.30752577]
[1757057726638,8.12,207.68,207.59,0.58]
[1757057726937,8.12,207.68,207.61,1.30752577]
[1757057727140,8.12,207.68,207.61,1.88752577]
[1757057727338,8.12,207.68,207.63,1.88752577]
[1757057727539,8.12,207.68,207.63,1.30752577]
[1757057727739,8.12,207.68,207.63,1.88752577]
[1757057727936,8.12,207.71,207.65,1.30752577]
[1757057729039,8.12,207.71,207.56,75.14]
[1757057729040,8.12,207.76,207.67,1.30752577]
[1757057730542,1.30752577,207.75,207.66,0.58]
[1757057730744,8.12,207.74,207.66,1.30752577]
[1757057731946,8.12,207.74,207.62,0.58]
[1757057732146,8.12,207.74,207.66,1.30752577]
[1757057732337,8.12,207.72,207.64,1.30752577]
[1757057733547,8.12,207.72,207.66,1.30752577]
[1757057735338,8.12,207.72,207.64,0.58]
[1757057735339,8.12,207.72,207.64,1.30752577]
[1757057736948,8.12,207.72,207.64,1.88752577]
[1757057737449,8.12,207.72,207.66,1.30752577]
[1757057738639,8.12,207.72,207.64,0.58]
[1757057738840,8.12,207.72,207.65,1.30752577]
[1757057739242,8.12,207.72,207.58,0.58]
[1757057739444,1.30752577,207.7,207.54,314.69863824]
[1757057739644,8.12,207.69,207.6,1.30752577]
[1757057739848,8.12,207.73,207.57,1.30752577]
[1757057740042,8.12,207.72,207.64,1.30752577]
[1757057740647,8.12,207.72,207.62,1.30752577]
[1757057740953,8.12,207.72,207.64,1.30752577]
[1757057741155,8.12,207.72,207.66,1.30752577]
[1757057741452,9.42752577,207.72,207.62,1.30752577]
[1757057742050,8.12,207.65,207.56,0.58]
[1757057742242,0.83817048,207.81,207.62,0.58]
[1757057742243,8.12,207.7,207.62,0.58]
[1757057742443,8.12,207.72,207.57,0.58]
[1757057742642,1.30752577,207.71,207.62,1.30752577]
[1757057742841,5.37288453,207.75,207.57,0.58]
[1757057742842,8.12,207.7,207.57,0.58]
[1757057743054,8.12,207.7,207.61,1.30752577]
[1757057744049,8.12,207.7,207.65,1.30752577]
[1757057744344,8.12,207.73,207.64,1.30752577]
[1757057744545,8.12,207.71,207.62,1.30752577]
[1757057745544,8.12,207.71,207.61,0.58]
[1757057746048,8.12,207.71,207.63,1.30752577]
[1757057746245,8.12,207.71,207.65,1.30752577]
[1757057746649,8.12,207.76,207.67,1.30752577]
[1757057746844,8.12,207.76,207.69,1.30752577]
[1757057747252,8.12,207.76,207.66,4.56]
[1757057747448,8.12,207.76,207.68,1.30752577]
[1757057747654,8.12,207.76,207.67,0.58]
[1757057747954,8.12,207.76,207.68,1.30752577]
[1757057748154,8.12,207.76,207.67,0.58]
[1757057748454,8.12,207.76,207.69,1.30752577]
[1757057749655,8.12,207.76,207.68,1.30752577]
[1757057750050,1.30752577,207.74,207.62,3.91863824]
[1757057750355,7.84,207.73,207.65,1.30752577]
[1757057750651,7.84,207.73,207.67,1.30752577]
[1757057751455,7.84,207.78,207.69,1.30752577]
[1757057752247,7.84,207.78,207.68,4.18]
[1757057752443,7.84,207.78,207.69,1.30752577]
[1757057752843,9.14752577,207.78,207.69,1.30752577]
[1757057753451,7.84,207.78,207.69,2.76594147]
[1757057754556,7.84,207.78,207.69,0.57]
[1757057754857,7.84,207.78,207.7,6.88]
[1757057755157,7.84,207.78,207.69,0.57]
[1757057755362,7.84,207.78,207.7,15.68]
[1757057755947,7.84,207.78,207.7,24.02]
[1757057756555,7.84,207.8,207.64,0.57]
[1757057756758,7.84,207.78,207.66,0.57]
[1757057757156,7.84,207.78,207.68,0.57]
[1757057757458,7.84,207.78,207.69,38.3]
[1757057757954,7.84,207.78,207.68,0.57]
[1757057758154,7.84,207.78,207.69,46.26]
[1757057758658,7.84,207.78,207.69,53.8]
[1757057758955,7.84,207.78,207.69,60.96]
[1757057759961,7.84,207.78,207.7,70.38]
[1757057760157,7.568826,207.84,207.7,70.38]
[1757057760357,5.37288453,207.84,207.75,2.76594147]
[1757057760560,7.84,207.86,207.75,0.57]
[1757057762060,7.84,207.86,207.75,2.76594147]
[1757057762362,7.84,207.86,207.75,0.57]
[1757057762657,7.84,207.86,207.75,2.76594147]
[1757057762859,7.84,207.86,207.76,0.57]
[1757057763357,2.19594147,207.87,207.72,120.74]
[1757057763560,7.84,207.86,207.73,2.76594147]
[1757057763760,7.84,207.86,207.74,0.57]
[1757057765064,7.84,207.86,207.75,2.19594147]
[1757057765265,7.84,207.86,207.76,0.57]
[1757057765466,7.84,207.86,207.77,2.19594147]
[1757057765670,7.84,207.86,207.78,0.57]
[1757057766162,7.84,207.93,207.78,0.57]
[1757057766361,10.03594147,207.93,207.78,0.57]
[1757057766957,10.03594147,207.93,207.75,2.19594147]
[1757057766958,2.19594147,207.9,207.75,2.19594147]
[1757057767162,7.84,207.89,207.75,2.19594147]
[1757057767364,7.84,207.89,207.74,2.76594147]
[1757057767562,7.84,207.89,207.75,0.57]
[1757057769963,7.84,207.89,207.73,0.57]
[1757057770164,7.84,207.89,207.79,2.76594147]
[1757057770975,7.84,207.89,207.79,0.57]
[1757057771171,7.84,207.89,207.75,2.76594147]
[1757057771479,2.19594147,207.88,207.75,0.57]
[1757057771878,7.84,207.87,207.75,0.57]
[1757057772277,7.84,207.87,207.7,0.57]
[1757057772478,7.84,207.81,207.7,0.57]
[1757057772979,2.19594147,207.79,207.69,310.04]
[1757057773176,2.19594147,207.76,207.61,0.57]
[1757057773369,10.03594147,207.75,207.61,0.57]
[1757057773574,10.03594147,207.75,207.61,4.9043]
[1757057773972,7.84,207.75,207.67,0.57]
[1757057774279,7.84,207.81,207.67,0.57]
[1757057774980,7.84,207.81,207.69,0.56]
[1757057778273,7.84,207.81,207.69,2.75594147]
[1757057778576,7.84,207.81,207.63,0.54]
[1757057778781,7.84,207.81,207.67,0.54]
[1757057779376,7.84,207.81,207.7,0.54]
[1757057779584,7.84,207.81,207.73,0.54]
[1757057781281,2.19594147,207.85,207.7,34.08]
[1757057781677,7.94,207.84,207.7,34.08]
[1757057781881,2.19594147,207.85,207.7,34.08]
[1757057782584,7.94,207.88,207.7,34.08]
[1757057782878,2.19594147,207.86,207.7,34.08]
[1757057783080,7.94,207.85,207.7,34.08]
[1757057783477,2.19594147,207.86,207.7,34.08]
[1757057783676,7.94,207.85,207.7,34.08]
[1757057783872,2.19594147,207.86,207.7,34.08]
[1757057784078,7.94,207.85,207.7,34.08]
[1757057784682,2.19594147,207.86,207.7,34.08]
[1757057784883,89.68997155,207.89,207.7,34.08]
[1757057784884,2.19594147,207.83,207.7,34.08]
[1757057785482,7.94,207.82,207.7,34.08]
[1757057786279,2.19594147,207.83,207.7,34.08]
[1757057786482,7.94,207.82,207.7,34.08]
[1757057786986,2.19594147,207.84,207.7,34.08]
[1757057787884,7.94,207.83,207.7,34.08]
[1757057788089,7.94,207.83,207.71,0.54]
[1757057794396,7.94,207.83,207.68,0.54]
[1757057794795,2.19594147,207.82,207.68,0.54]
[1757057794994,7.94,207.81,207.68,0.54]
[1757057796896,7.94,207.81,207.68,2.73594147]
[1757057798793,7.94,207.81,207.69,0.54]
[1757057804198,7.94,207.81,207.72,0.54]
[1757057804903,91.88591302,207.89,207.75,0.54]
[1757057805098,7.94,207.88,207.75,2.73594147]
[1757057805300,7.94,207.88,207.76,0.54]
[1757057805500,7.94,207.88,207.79,0.54]
[1757057805700,7.94,207.91,207.82,0.54]
[1757057808504,7.94,207.91,207.77,0.55]
[1757057809613,7.37,207.88,207.73,2.74594147]
[1757057809910,2.19594147,207.86,207.73,0.55]
[1757057810109,7.37,207.85,207.73,0.55]
[1757057812512,7.37,207.85,207.7,2.19594147]
[1757057813108,7.37,207.85,207.71,0.55]
[1757057813507,7.37,207.82,207.74,1.40510109]
[1757057814008,7.37,207.82,207.73,1.40510109]
[1757057814409,8.77510109,207.82,207.73,1.40510109]
[1757057814811,7.37,207.79,207.7,1.40510109]
[1757057816010,7.37,207.79,207.72,1.40510109]
[1757057816211,7.37,207.79,207.74,1.95510109]
[1757057816416,7.37,207.84,207.74,1.40510109]
[1757057816615,7.37,207.82,207.74,1.40510109]
[1757057817115,8.77510109,207.82,207.72,1.40510109]
[1757057817719,8.77510109,207.82,207.74,1.40510109]
[1757057818619,8.77510109,207.82,207.73,1.40510109]
[1757057820518,8.77510109,207.82,207.73,1.95510109]
[1757057820713,7.37,207.82,207.75,1.40510109]
[1757057821114,7.37,207.82,207.75,1.95510109]
[1757057821916,7.37,207.82,207.77,1.95510109]
[1757057822214,7.37,207.82,207.77,0.55]
[1757057822414,7.37,207.82,207.77,1.95510109]
[1757057822820,7.37,207.87,207.78,0.55]
[1757057823217,1.40510109,207.86,207.71,3.91120179]